Workbook

Sheet Formato
B2: FORMATO PARA MODIFICACIÓN DE ÓRDENES DE COMPRA
B3: Tienda Virtual del Estado Colombiano
B5: Número de Orden de Compra a modificar: | E5: 12029 | H5: Número de modificación de la Orden de Compra: | K5: 1
B8: Entidad Compradora: | D8: MINISTERIO DE DEFENSA NACIONAL-EJERCITO NACIONAL-APOYO LOGISTICO COMANDO EJERCITO | L8: NIT: | M8: 800130632-4
B10: Nombre del solicitante: | K10: Teléfono de contacto: | M10: 4261479 EXT 38100
B12: Proveedor : | D12: Ofibest SAS
B14: Sección 1: Tipo de acción
B16: Tipo | D16: Modificación de la Orden de Compra
B18: Sección 2: Justificación de la modificación o de las acciones a realizar
B20: SE SOLICITAN MAYORES CANTIDADES PARA PODER SATISFACER LA NECESIDAD DE LA ENTIDAD Y PODER CUBRIR LO PLANTEADO PARA LAS DISTINTAS DIRECCIONES Y JEFATURAS DEL COMANDO DEL EJERCITO EN EL MES DE ENERO Y PODER TENER STOCK DE LOS ELEMENTOS, PARA NO OCASIONAR NINGUN CONTRATIEMPO EN LA NORMAL ACTIVIDAD ADMINISTRATIVA DE LA ENTIDAD
B22: Sección 3: Modificación información general
B24: Nombre del campo | D24: ¿Requiere modificación Si/No? | E24: Datos actuales | J24: Nuevos datos
B26: Actualizar supervisor | D26: NO | E26: Nombre del supervisor actual | G26: 0 | J26: Nombre nuevo supervisor
B28: Dirección y/o teléfono Supervisor | D28: NO | E28: Teléfono actual supervisor | G28: 0 | J28: Teléfono nuevo supervisor
B30: Fecha de vencimiento | D30: NO | E30: La fecha vencimiento actual se tomará de la TVEC al momento del cambio | J30: Nueva fecha de vencimiento
B32: Dirección y/o teléfono Entidad | D32: NO | E32: Dirección / teléfono actual Entidad | G32: 0 | J32: Nueva dirección / teléfono Entidad
A36: Sección 4: Modificación de artículos y servicios
A38: Tipo de modificación | B38: Información actual | K38: Nueva información
B39: Número de la línea según O.C. | C39: Nombre del artículo | E39: Cantidad | F39: Unidad de medida | G39: Precio unitario | H39: Total | I39: Información presupuestal | K39: Nombre del artículo | M39: Cantidad | N39: Unidad de medida | O39: Precio unitario | P39: Total | Q39: Información presupuestal
A40: Modificación de artículo o servicio | B40: 1 | C40: Almohadilla Dactilar | E40: 18 | F40: Unidad | G40: 914.5 | H40: =ROUND(E40*G40, 2) -> 16461 | K40: =C40 -> Almohadilla Dactilar | M40: 85 | N40: Unidad | O40: 914.5 | P40: =ROUND(M40*O40, 2) -> 77732.5
A41: Modificación de artículo o servicio | B41: 2 | C41: Almohadilla Dactilar Recargable | E41: 12 | F41: Unidad | G41: 12749.1 | H41: 152989.2 | K41: Almohadilla Dactilar Recargable | M41: 22 | N41: Unidad | O41: 12749.1 | P41: 280480.2
A42: Modificación de artículo o servicio | B42: 3 | C42: Almohadilla Para Sello Recargable | E42: 12 | F42: Unidad | G42: 2663.2 | H42: 31958.4 | K42: Almohadilla Para Sello Recargable | M42: 22 | N42: Unidad | O42: 2663.2 | P42: 58590.4
A43: Modificación de artículo o servicio | B43: 4 | C43: Archivador De Fuelle En Polipropileno | E43: 24 | F43: Unidad | G43: 6183.2 | H43: 148396.8 | K43: Archivador De Fuelle En Polipropileno | M43: 54 | N43: Unidad | O43: 6183.2 | P43: 333892.8
A44: Modificación de artículo o servicio | B44: 5 | C44: Archivador De Fuelle En Yute | E44: 18 | F44: Unidad | G44: 5727.2 | H44: 103089.6 | K44: Archivador De Fuelle En Yute | M44: 23 | N44: Unidad | O44: 5727.2 | P44: 131725.6
A45: Modificación de artículo o servicio | B45: 6 | C45: Bandas Elásticas Ref. 22 X 25G | E45: 300 | F45: Caja | G45: 159.1 | H45: 47730 | K45: Bandas Elásticas Ref. 22 X 25G | M45: 350 | N45: Caja | O45: 159.1 | P45: 55685
A46: Modificación de artículo o servicio | B46: 7 | C46: Bandas Elásticas Ref. 22 X Kilo | E46: 300 | F46: Bolsa | G46: 6845.6 | H46: 2053680 | K46: Bandas Elásticas Ref. 22 X Kilo | M46: 310 | N46: Bolsa | O46: 6845.6 | P46: 2122136
A47: Modificación de artículo o servicio | B47: 8 | C47: Banderitas-Mini-Banderitas- Señales Autoadhesivas | E47: 120 | F47: Unidad | G47: 1056.5 | H47: 126780 | K47: Banderitas-Mini-Banderitas- Señales Autoadhesivas | M47: 170 | N47: Unidad | O47: 1056.5 | P47: 179605
A48: Modificación de artículo o servicio | B48: 9 | C48: Bisturí 18Mm Metálico | E48: 120 | F48: Unidad | G48: 1229 | H48: 147480 | K48: Bisturí 18Mm Metálico | M48: 140 | N48: Unidad | O48: 1229 | P48: 172060
A49: Modificación de artículo o servicio | B49: 10 | C49: Bisturí 18Mm Plástico | E49: 120 | F49: Unidad | G49: 478 | H49: 57360 | K49: Bisturí 18Mm Plástico | M49: 140 | N49: Unidad | O49: 478 | P49: 66920
A50: Modificación de artículo o servicio | B50: 11 | C50: Block Amarillo Cuadriculado | E50: 240 | F50: Unidad | G50: 1367.3 | H50: 328152 | K50: Block Amarillo Cuadriculado | M50: 289 | N50: Unidad | O50: 1367.3 | P50: 395149.7
A51: Modificación de artículo o servicio | B51: 12 | C51: Block Amarillo Rayado | E51: 240 | F51: Unidad | G51: 1367.3 | H51: 328152 | K51: Block Amarillo Rayado | M51: 289 | N51: Unidad | O51: 1367.3 | P51: 395149.7
A52: Modificación de artículo o servicio | B52: 13 | C52: Block Blanco Cuadriculado | E52: 240 | F52: Unidad | G52: 852.6 | H52: 204624 | K52: Block Blanco Cuadriculado | M52: 290 | N52: Unidad | O52: 852.6 | P52: 247254
A53: Modificación de artículo o servicio | B53: 14 | C53: Block Blanco Rayado | E53: 240 | F53: Unidad | G53: 852.6 | H53: 204624 | K53: Block Blanco Rayado | M53: 290 | N53: Unidad | O53: 852.6 | P53: 247254
A54: Modificación de artículo o servicio | B54: 15 | C54: Bolígrafo Azul | E54: 300 | F54: Unidad | G54: 164.7 | H54: 49410 | K54: Bolígrafo Azul | M54: 330 | N54: Unidad | O54: 164.7 | P54: 54351
A55: Modificación de artículo o servicio | B55: 16 | C55: Bolígrafo Negro | E55: 300 | F55: Unidad | G55: 164.7 | H55: 49410 | K55: Bolígrafo Negro | M55: 350 | N55: Unidad | O55: 164.7 | P55: 57645
A56: Modificación de artículo o servicio | B56: 17 | C56: Bolígrafo Rojo | E56: 300 | F56: Unidad | G56: 164.7 | H56: 49410 | K56: Bolígrafo Rojo | M56: 310 | N56: Unidad | O56: 164.7 | P56: 51057
A57: Modificación de artículo o servicio | B57: 18 | C57: Borrador De Nata | E57: 360 | F57: Unidad | G57: 150.2 | H57: 54072 | K57: Borrador De Nata | M57: 410 | N57: Unidad | O57: 150.2 | P57: 61582
A58: Modificación de artículo o servicio | B58: 19 | C58: Borrador Para Tablero | E58: 30 | F58: Unidad | G58: 956 | H58: 28680 | K58: Borrador Para Tablero | M58: 40 | N58: Unidad | O58: 956 | P58: 38240
A59: Modificación de artículo o servicio | B59: 20 | C59: Borrador Para Tinta Con Escobilla | E59: 90 | F59: Unidad | G59: 2859.95 | H59: 257395.5 | K59: Borrador Para Tinta Con Escobilla | M59: 100 | N59: Unidad | O59: 2859.95 | P59: 285995
A60: Modificación de artículo o servicio | B60: 21 | C60: Caballete O Trípode Para Tablero Acrílico | E60: 60 | F60: Unidad | G60: 45016 | H60: 2700960 | K60: Caballete O Trípode Para Tablero Acrílico | M60: 65 | N60: Unidad | O60: 45016 | P60: 2926040
A61: Modificación de artículo o servicio | B61: 22 | C61: Cajas Para Archivo Central Referencia X-200 Membreteada. La Entidad Compradora Debe Solicitar Mínimo 500 Unidades. | E61: 2500 | F61: Unidad | G61: 1479.71 | H61: 3699275 | K61: Cajas Para Archivo Central Referencia X-200 Membreteada. La Entidad Compradora Debe Solicitar Mínimo 500 Unidades. | M61: 3000 | N61: Unidad | O61: 1479.71 | P61: 4439130
A62: Modificación de artículo o servicio | B62: 23 | C62: Caja Para Archivo Histórico Referencia X-100 Membreteada. La Entidad Compradora Debe Solicitar Mínimo 500 Unidades. | E62: 4000 | F62: Unidad | G62: 1132.3 | H62: 4529200 | K62: Caja Para Archivo Histórico Referencia X-100 Membreteada. La Entidad Compradora Debe Solicitar Mínimo 500 Unidades. | M62: 4500 | N62: Unidad | O62: 1132.3 | P62: 5095350
A63: Modificación de artículo o servicio | B63: 24 | C63: Caja Para Archivo Referencia X-300 Membreteada. La Entidad Compradora Debe Solicitar Mínimo 500 Unidades. | E63: 3000 | F63: Unidad | G63: 2585.4 | H63: 7756200 | K63: Caja Para Archivo Referencia X-300 Membreteada. La Entidad Compradora Debe Solicitar Mínimo 500 Unidades. | M63: 3500 | N63: Unidad | O63: 2585.4 | P63: 9048900
A64: Modificación de artículo o servicio | B64: 25 | C64: Caja Para Archivo Central Referencia X-200 | E64: 2000 | F64: Unidad | G64: 1099.8 | H64: 2199600 | K64: Caja Para Archivo Central Referencia X-200 | M64: 2500 | N64: Unidad | O64: 1099.8 | P64: 2749500
A65: Modificación de artículo o servicio | B65: 26 | C65: Caja Para Archivo Histórico Referencia X-100 | E65: 4000 | F65: Unidad | G65: 1199.9 | H65: 4799600 | K65: Caja Para Archivo Histórico Referencia X-100 | M65: 4500 | N65: Unidad | O65: 1199.9 | P65: 5399550
A66: Modificación de artículo o servicio | B66: 27 | C66: Caja Para Archivo Referencia X-300 | E66: 2000 | F66: Unidad | G66: 2575.5 | H66: 5151000 | K66: Caja Para Archivo Referencia X-300 | M66: 2500 | N66: Unidad | O66: 2575.5 | P66: 6438750
A67: Modificación de artículo o servicio | B67: 28 | C67: Calculadora De Escritorio Con Impresora | E67: 12 | F67: Unidad | G67: 160121.2 | H67: 1921454.4 | K67: Calculadora De Escritorio Con Impresora | M67: 24 | N67: Unidad | O67: 160121.2 | P67: 3842908.8
A68: Modificación de artículo o servicio | B68: 29 | C68: Calculadora Escritorio 12 Dígitos | E68: 30 | F68: Unidad | G68: 7099 | H68: 212970 | K68: Calculadora Escritorio 12 Dígitos | M68: 40 | N68: Unidad | O68: 7099 | P68: 283960
A69: Modificación de artículo o servicio | B69: 30 | C69: Carpeta Presentación Oficio Plastificado Mate | E69: 1200 | F69: 20 unidades | G69: 4030 | H69: 4836000 | K69: Carpeta Presentación Oficio Plastificado Mate | M69: 1220 | N69: 20 unidades | O69: 4030 | P69: 4916600
A70: Modificación de artículo o servicio | B70: 31 | C70: Carpeta Tipo 4 Aletas En Cartulina Desacidificada | E70: 8500 | F70: Unidad | G70: 900 | H70: 7650000 | K70: Carpeta Tipo 4 Aletas En Cartulina Desacidificada | M70: 9000 | N70: Unidad | O70: 900 | P70: 8100000
A71: Modificación de artículo o servicio | B71: 32 | C71: Carpeta Tipo 4 Aletas En Cartulina Blanca Tipo Propalcote | E71: 6500 | F71: Unidad | G71: 603.85 | H71: 3925025 | K71: Carpeta Tipo 4 Aletas En Cartulina Blanca Tipo Propalcote | M71: 7000 | N71: Unidad | O71: 603.85 | P71: 4226950
A72: Modificación de artículo o servicio | B72: 33 | C72: Carpeta Tipo Catálogo 0.5 Pulg | E72: 30 | F72: Unidad | G72: 2150.5 | H72: =ROUND(E72*G72, 2) -> 64515 | K72: =C72 -> Carpeta Tipo Catálogo 0.5 Pulg | M72: 40 | N72: Unidad | O72: 2150.5 | P72: =ROUND(M72*O72, 2) -> 86020
A73: Modificación de artículo o servicio | B73: 34 | C73: Carpeta Tipo Catálogo 1 Pulg | E73: 60 | F73: Unidad | G73: 2703 | H73: 162180 | K73: Carpeta Tipo Catálogo 1 Pulg | M73: 120 | N73: Unidad | O73: 2703 | P73: 324360
A74: Modificación de artículo o servicio | B74: 35 | C74: Carpeta Tipo Catálogo 2 Pulg | E74: 120 | F74: Unidad | G74: 4197.5 | H74: 503700 | K74: Carpeta Tipo Catálogo 2 Pulg | M74: 240 | N74: Unidad | O74: 4197.5 | P74: 1007400
A75: Modificación de artículo o servicio | B75: 36 | C75: Carpeta Tipo Catálogo 3 Pulg | E75: 12 | F75: Unidad | G75: 4914.4 | H75: 58972.8 | K75: Carpeta Tipo Catálogo 3 Pulg | M75: 24 | N75: Unidad | O75: 4914.4 | P75: 117945.6
A76: Modificación de artículo o servicio | B76: 37 | C76: Carpeta Tipo Catálogo 4 Pulg | E76: 18 | F76: Unidad | G76: 5389.8 | H76: 97016.4 | K76: Carpeta Tipo Catálogo 4 Pulg | M76: 36 | N76: Unidad | O76: 5389.8 | P76: 194032.8
A77: Modificación de artículo o servicio | B77: 38 | C77: Cartulina Oficio Surtido | E77: 120 | F77: Paquete X 100 | G77: 2115.3 | H77: 253836 | K77: Cartulina Oficio Surtido | M77: 130 | N77: Paquete X 100 | O77: 2115.3 | P77: 274989
A78: Modificación de artículo o servicio | B78: 39 | C78: Cd-R | E78: 120 | F78: 100 Unidades | G78: 30487.8 | H78: 3658536 | K78: Cd-R | M78: 130 | N78: 100 Unidades | O78: 30487.8 | P78: 3963414
A79: Modificación de artículo o servicio | B79: 40 | C79: Cd-Rw | E79: 180 | F79: 25 Unidades | G79: 23262.7 | H79: 4187286 | K79: Cd-Rw | M79: 190 | N79: 25 Unidades | O79: 23262.7 | P79: 4419913
A80: Modificación de artículo o servicio | B80: 41 | C80: Cera Para Contar - Cera Dactilar Cuenta Fácil | E80: 240 | F80: Unidad | G80: 676.4 | H80: 162336 | K80: Cera Para Contar - Cera Dactilar Cuenta Fácil | M80: 290 | N80: Unidad | O80: 676.4 | P80: 196156
A81: Modificación de artículo o servicio | B81: 42 | C81: Chinches X 50 | E81: 180 | F81: Caja X 50 | G81: 497 | H81: 89460 | K81: Chinches X 50 | M81: 1182 | N81: Caja X 50 | O81: 497 | P81: 587454
A82: Modificación de artículo o servicio | B82: 43 | C82: Cinta Adhesiva De Empaque En Rollo | E82: 240 | F82: Unidad - Rollo | G82: 1693.7 | H82: 406488 | K82: Cinta Adhesiva De Empaque En Rollo | M82: 276 | N82: Unidad - Rollo | O82: 1693.7 | P82: 467461.2
A83: Modificación de artículo o servicio | B83: 44 | C83: Cinta Adhesiva Mágica | E83: 120 | F83: Unidad - Rollo | G83: 3170 | H83: 380400 | K83: Cinta Adhesiva Mágica | M83: 156 | N83: Unidad - Rollo | O83: 3170 | P83: 494520
A84: Modificación de artículo o servicio | B84: 45 | C84: Cinta Adhesiva Para Enmascarar 12Mm | E84: 180 | F84: Unidad - Rollo | G84: 952.3 | H84: 171414 | K84: Cinta Adhesiva Para Enmascarar 12Mm | M84: 216 | N84: Unidad - Rollo | O84: 952.3 | P84: 205696.8
A85: Modificación de artículo o servicio | B85: 46 | C85: Cinta Adhesiva Para Enmascarar 48Mm | E85: 120 | F85: Unidad - Rollo | G85: 3520.1 | H85: 422412 | K85: Cinta Adhesiva Para Enmascarar 48Mm | M85: 156 | N85: Unidad - Rollo | O85: 3520.1 | P85: 549135.6
A86: Modificación de artículo o servicio | B86: 47 | C86: Cinta Adhesiva Transparente | E86: 60 | F86: Unidad - Rollo | G86: 375.1 | H86: 22506 | K86: Cinta Adhesiva Transparente | M86: 72 | N86: Unidad - Rollo | O86: 375.1 | P86: 27007.2
A87: Modificación de artículo o servicio | B87: 48 | C87: Clip Estándar Pequeño X 100 | E87: 180 | F87: Caja x 100 | G87: 160.9 | H87: 28962 | K87: Clip Estándar Pequeño X 100 | M87: 190 | N87: Caja x 100 | O87: 160.9 | P87: 30571
A88: Modificación de artículo o servicio | B88: 49 | C88: Clip Estándar Pequeño Plastificado X 100 | E88: 30 | F88: Caja x 100 | G88: 201.1 | H88: 6033 | K88: Clip Estándar Pequeño Plastificado X 100 | M88: 60 | N88: Caja x 100 | O88: 201.1 | P88: 12066
A89: Modificación de artículo o servicio | B89: 50 | C89: Clip Jumbo X 100 | E89: 60 | F89: Caja x 100 | G89: 788.9 | H89: 47334 | K89: Clip Jumbo X 100 | M89: 71 | N89: Caja x 100 | O89: 788.9 | P89: 56011.9
A90: Modificación de artículo o servicio | B90: 51 | C90: Corrector Liquido En Frasco | E90: 180 | F90: Unidad | G90: 882.5 | H90: 158850 | K90: Corrector Liquido En Frasco | M90: 204 | N90: Unidad | O90: 882.5 | P90: 180030
A91: Modificación de artículo o servicio | B91: 52 | C91: Corrector Líquido En Lápiz | E91: 120 | F91: Unidad | G91: 838 | H91: 100560 | K91: Corrector Líquido En Lápiz | M91: 144 | N91: Unidad | O91: 838 | P91: 120672
A92: Modificación de artículo o servicio | B92: 53 | C92: Cosedora De Oficina 20 Hojas | E92: 30 | F92: Unidad | G92: 7054 | H92: 211620 | K92: Cosedora De Oficina 20 Hojas | M92: 40 | N92: Unidad | O92: 7054 | P92: 282160
A93: Modificación de artículo o servicio | B93: 54 | C93: Cosedora De Oficina 30 Hojas | E93: 30 | F93: Unidad | G93: 14353.6 | H93: 430608 | K93: Cosedora De Oficina 30 Hojas | M93: 40 | N93: Unidad | O93: 14353.6 | P93: 574144
A94: Modificación de artículo o servicio | B94: 55 | C94: Cosedora Eléctrica | E94: 36 | F94: Unidad | G94: 150999.4 | H94: 5435978.4 | K94: Cosedora Eléctrica | M94: 38 | N94: Unidad | O94: 150999.4 | P94: 5737977.2
A95: Modificación de artículo o servicio | B95: 56 | C95: Cosedora Industrial | E95: 30 | F95: Unidad | G95: 63817.15 | H95: 1914514.5 | K95: Cosedora Industrial | M95: 32 | N95: Unidad | O95: 63817.15 | P95: 2042148.8
A96: Modificación de artículo o servicio | B96: 57 | C96: Cosedora Semindustrial | E96: 60 | F96: Unidad | G96: 45324 | H96: 2719440 | K96: Cosedora Semindustrial | M96: 65 | N96: Unidad | O96: 45324 | P96: 2946060
A97: Modificación de artículo o servicio | B97: 58 | C97: Fechador De Entintado Manual | E97: 30 | F97: Unidad | G97: 3047 | H97: 91410 | K97: Fechador De Entintado Manual | M97: 40 | N97: Unidad | O97: 3047 | P97: 121880
A98: Modificación de artículo o servicio | B98: 59 | C98: Ficha Bibliográficas X 100 | E98: 6 | F98: 100 Unidades | G98: 755.9 | H98: 4535.4 | K98: Ficha Bibliográficas X 100 | M98: 8 | N98: 100 Unidades | O98: 755.9 | P98: 6047.2
A99: Modificación de artículo o servicio | B99: 60 | C99: Folder Celuguia Con Porta Guía Plástica En Posición Horizontal Paquete X 50 Que Cumplan Con Ntc 4436:1999 Y Ntc 5397 Paquete X 50 | E99: 48 | F99: 50 Unidades | G99: 5947.1 | H99: 285460.8 | K99: Folder Celuguia Con Porta Guía Plástica En Posición Horizontal Paquete X 50 Que Cumplan Con Ntc 4436:1999 Y Ntc 5397 Paquete X 50 | M99: 50 | N99: 50 Unidades | O99: 5947.1 | P99: 297355
A100: Modificación de artículo o servicio | B100: 61 | C100: Folder Celuguia Con Porta Guía Plástica En Posición Vertical, Paquete X 50 Que Cumplan Con Ntc 4436:1999 Y Ntc 5397 | E100: 48 | F100: Paquete x 50 | G100: 5947.1 | H100: 285460.8 | K100: Folder Celuguia Con Porta Guía Plástica En Posición Vertical, Paquete X 50 Que Cumplan Con Ntc 4436:1999 Y Ntc 5397 | M100: 50 | N100: Paquete x 50 | O100: 5947.1 | P100: 297355
A101: Modificación de artículo o servicio | B101: 62 | C101: Forma Continua Carta 2 Partes Caja X 1500 | E101: 50 | F101: Caja x 1500 | G101: 62963.2 | H101: 3148160 | K101: Forma Continua Carta 2 Partes Caja X 1500 | M101: 52 | N101: Caja x 1500 | O101: 62963.2 | P101: 3274086.4
A102: Modificación de artículo o servicio | B102: 63 | C102: Forma Continua Carta 3 Partes Caja X 1000 | E102: 200 | F102: Caja x 1000 | G102: 44430.96 | H102: 8886192 | K102: Forma Continua Carta 3 Partes Caja X 1000 | M102: 210 | N102: Caja x 1000 | O102: 44430.96 | P102: 9330501.6
A103: Modificación de artículo o servicio | B103: 64 | C103: Forma Continua Oficio 1 Parte, Caja X 3000 | E103: 250 | F103: Caja x 3000 | G103: 41560.48 | H103: 10390120 | K103: Forma Continua Oficio 1 Parte, Caja X 3000 | M103: 260 | N103: Caja x 3000 | O103: 41560.48 | P103: 10805724.8
A104: Modificación de artículo o servicio | B104: 65 | C104: Funda Protectora De Plástico Tamaño Carta X 100 Unidades | E104: 120 | F104: 100 Unidades | G104: 7601 | H104: =ROUND(E104*G104, 2) -> 912120 | K104: =C104 -> Funda Protectora De Plástico Tamaño Carta X 100 Unidades | M104: 125 | N104: 100 Unidades | O104: 7601 | P104: =ROUND(M104*O104, 2) -> 950125
A105: Modificación de artículo o servicio | B105: 66 | C105: Funda Protectora De Plástico Tamaño Oficio X 100 Unidades | E105: 120 | F105: 100 Unidades | G105: 10223 | H105: 1226760 | K105: Funda Protectora De Plástico Tamaño Oficio X 100 Unidades | M105: 125 | N105: 100 Unidades | O105: 10223 | P105: 1277875
A106: Modificación de artículo o servicio | B106: 67 | C106: Gancho Legajador Plástico X 20 | E106: 1200 | F106: 20 Unidades | G106: 1017 | H106: 1220400 | K106: Gancho Legajador Plástico X 20 | M106: 1210 | N106: 20 Unidades | O106: 1017 | P106: 1230570
A107: Modificación de artículo o servicio | B107: 68 | C107: Grapa No. 26/6 Caja X 5000 | E107: 120 | F107: Caja x 5000 | G107: 934.1 | H107: 112092 | K107: Grapa No. 26/6 Caja X 5000 | M107: 130 | N107: Caja x 5000 | O107: 934.1 | P107: 121433
A108: Modificación de artículo o servicio | B108: 69 | C108: Guía En Cartulina Carta Paquete X 5 | E108: 240 | F108: Paquete x 5 | G108: 341 | H108: 81840 | K108: Guía En Cartulina Carta Paquete X 5 | M108: 250 | N108: Paquete x 5 | O108: 341 | P108: 85250
A109: Modificación de artículo o servicio | B109: 70 | C109: Guía En Cartulina Oficio Paquete X 5 | E109: 240 | F109: Paquete x 5 | G109: 410 | H109: 98400 | K109: Guía En Cartulina Oficio Paquete X 5 | M109: 250 | N109: Paquete x 5 | O109: 410 | P109: 102500
A110: Modificación de artículo o servicio | B110: 71 | C110: Guillotina Manual Corte De Minimo 12 Hojas | E110: 12 | F110: Unidad | G110: 51037.8 | H110: 612453.6 | K110: Guillotina Manual Corte De Minimo 12 Hojas | M110: 24 | N110: Unidad | O110: 51037.8 | P110: 1224907.2
A111: Modificación de artículo o servicio | B111: 72 | C111: Lápiz De Chequeo Mina Roja | E111: 360 | F111: Unidad | G111: 227.3 | H111: 81828 | K111: Lápiz De Chequeo Mina Roja | M111: 398 | N111: Unidad | O111: 227.3 | P111: 90465.4
A112: Modificación de artículo o servicio | B112: 73 | C112: Lápiz De Escritura Mina Negra | E112: 60 | F112: 12 unidades | G112: 1600.4 | H112: 96024 | K112: Lápiz De Escritura Mina Negra | M112: 80 | N112: 12 unidades | O112: 1600.4 | P112: 128032
A113: Modificación de artículo o servicio | B113: 74 | C113: Legajador Az | E113: 360 | F113: Unidad | G113: 1996.1 | H113: 718596 | K113: Legajador Az | M113: 380 | N113: Unidad | O113: 1996.1 | P113: 758518
A114: Modificación de artículo o servicio | B114: 75 | C114: Libreta De Taquigrafía | E114: 60 | F114: Unidad | G114: 1131.7 | H114: 67902 | K114: Libreta De Taquigrafía | M114: 120 | N114: Unidad | O114: 1131.7 | P114: 135804
A115: Modificación de artículo o servicio | B115: 76 | C115: Libreta Doble O Rayado/ Cuaderno Rayado | E115: 180 | F115: Unidad | G115: 1091.7 | H115: 196506 | K115: Libreta Doble O Rayado/ Cuaderno Rayado | M115: 253 | N115: Unidad | O115: 1091.7 | P115: 276200.1
A116: Modificación de artículo o servicio | B116: 77 | C116: Libreta Doble O Cuadriculado | E116: 60 | F116: Unidad | G116: 1091.7 | H116: 65502 | K116: Libreta Doble O Cuadriculado | M116: 120 | N116: Unidad | O116: 1091.7 | P116: 131004
A117: Modificación de artículo o servicio | B117: 78 | C117: Libretatelemensaje | E117: 72 | F117: Unidad | G117: 7972.5 | H117: 574020 | K117: Libretatelemensaje | M117: 82 | N117: Unidad | O117: 7972.5 | P117: 653745
A118: Modificación de artículo o servicio | B118: 79 | C118: Libro De Actas 100 Folios | E118: 120 | F118: Unidad | G118: 2530.5 | H118: 303660 | K118: Libro De Actas 100 Folios | M118: 140 | N118: Unidad | O118: 2530.5 | P118: 354270
A119: Modificación de artículo o servicio | B119: 80 | C119: Libro De Actas 200 Folios | E119: 120 | F119: Unidad | G119: 4228.9 | H119: 507468 | K119: Libro De Actas 200 Folios | M119: 140 | N119: Unidad | O119: 4228.9 | P119: 592046
A120: Modificación de artículo o servicio | B120: 81 | C120: Libro De Actas 300 Folios | E120: 180 | F120: Unidad | G120: 6037.8 | H120: 1086804 | K120: Libro De Actas 300 Folios | M120: 200 | N120: Unidad | O120: 6037.8 | P120: 1207560
A121: Modificación de artículo o servicio | B121: 82 | C121: Libro De Actas 400 Folios | E121: 180 | F121: Unidad | G121: 7725 | H121: 1390500 | K121: Libro De Actas 400 Folios | M121: 200 | N121: Unidad | O121: 7725 | P121: 1545000
A122: Modificación de artículo o servicio | B122: 83 | C122: Libro De Actas 600 Folios | E122: 120 | F122: Unidad | G122: 11227.5 | H122: 1347300 | K122: Libro De Actas 600 Folios | M122: 140 | N122: Unidad | O122: 11227.5 | P122: 1571850
A123: Modificación de artículo o servicio | B123: 84 | C123: Manecilla Doble Clip 2 Pulg Caja X 12 | E123: 30 | F123: Caja x 12 | G123: 1351.1 | H123: 40533 | K123: Manecilla Doble Clip 2 Pulg Caja X 12 | M123: 35 | N123: Caja x 12 | O123: 1351.1 | P123: 47288.5
A124: Modificación de artículo o servicio | B124: 85 | C124: Manecilla Doble Clip 1 Pulg Caja X 12 | E124: 30 | F124: Caja x 12 | G124: 1176.5 | H124: 35295 | K124: Manecilla Doble Clip 1 Pulg Caja X 12 | M124: 35 | N124: Caja x 12 | O124: 1176.5 | P124: 41177.5
A125: Modificación de artículo o servicio | B125: 86 | C125: Manecilla Doble Clip 1/2 Pulg Caja X 12 | E125: 30 | F125: Caja x 12 | G125: 482 | H125: 14460 | K125: Manecilla Doble Clip 1/2 Pulg Caja X 12 | M125: 35 | N125: Caja x 12 | O125: 482 | P125: 16870
A126: Modificación de artículo o servicio | B126: 87 | C126: Marcador Borrable Desechable | E126: 480 | F126: Unidad | G126: 648.4 | H126: 311232 | K126: Marcador Borrable Desechable | M126: 530 | N126: Unidad | O126: 648.4 | P126: 343652
A127: Modificación de artículo o servicio | B127: 88 | C127: Marcador Borrable Recargable | E127: 240 | F127: Unidad | G127: 1007.2 | H127: 241728 | K127: Marcador Borrable Recargable | M127: 290 | N127: Unidad | O127: 1007.2 | P127: 292088
A128: Modificación de artículo o servicio | B128: 89 | C128: Marcador Permanente | E128: 180 | F128: Unidad | G128: 383.5 | H128: 69030 | K128: Marcador Permanente | M128: 190 | N128: Unidad | O128: 383.5 | P128: 72865
A129: Modificación de artículo o servicio | B129: 90 | C129: Marcador Permanente Punta Delgada | E129: 120 | F129: Unidad | G129: 675.3 | H129: 81036 | K129: Marcador Permanente Punta Delgada | M129: 130 | N129: Unidad | O129: 675.3 | P129: 87789
A130: Modificación de artículo o servicio | B130: 91 | C130: Mina Para Portaminas 0,7 Mm | E130: 240 | F130: Unidad | G130: 190.3 | H130: 45672 | K130: Mina Para Portaminas 0,7 Mm | M130: 290 | N130: Unidad | O130: 190.3 | P130: 55187
A131: Modificación de artículo o servicio | B131: 92 | C131: Notas Autoadhesivas Estándar/ Taco/ Bloque/ Cubo De Minimo 100 Hojas | E131: 90 | F131: Unidad | G131: 1087 | H131: 97830 | K131: Notas Autoadhesivas Estándar/ Taco/ Bloque/ Cubo De Minimo 100 Hojas | M131: 180 | N131: Unidad | O131: 1087 | P131: 195660
A132: Modificación de artículo o servicio | B132: 93 | C132: Notas Autoadhesivas Pequeñas/ Taco/ Bloque/ Cubo De Minimo 100 Hojas | E132: 48 | F132: Unidad | G132: 514 | H132: 24672 | K132: Notas Autoadhesivas Pequeñas/ Taco/ Bloque/ Cubo De Minimo 100 Hojas | M132: 60 | N132: Unidad | O132: 514 | P132: 30840
A133: Modificación de artículo o servicio | B133: 94 | C133: Numerador Entintado Manual 6 Dígitos | E133: 30 | F133: Unidad | G133: 2389 | H133: 71670 | K133: Numerador Entintado Manual 6 Dígitos | M133: 40 | N133: Unidad | O133: 2389 | P133: 95560
A134: Modificación de artículo o servicio | B134: 95 | C134: Numerador Entintado Manual 8 Dígitos | E134: 30 | F134: Unidad | G134: 3140 | H134: 94200 | K134: Numerador Entintado Manual 8 Dígitos | M134: 40 | N134: Unidad | O134: 3140 | P134: 125600
A135: Modificación de artículo o servicio | B135: 96 | C135: Papel Bond 75G Carta Caja X 10 Resmas | E135: 270 | F135: 10 resmas | G135: 73204.56 | H135: 19765231.2 | K135: Papel Bond 75G Carta Caja X 10 Resmas | M135: 400 | N135: 10 resmas | O135: 73204.56 | P135: 29281824
A136: Modificación de artículo o servicio | B136: 97 | C136: Papel Bond 75G Oficio Caja X 10 Resmas | E136: 180 | F136: 10 resmas | G136: 84363.84 | H136: =ROUND(E136*G136, 2) -> 15185491.2 | K136: =C136 -> Papel Bond 75G Oficio Caja X 10 Resmas | M136: 275 | N136: 10 resmas | O136: 84363.84 | P136: =ROUND(M136*O136, 2) -> 23200056
A137: Modificación de artículo o servicio | B137: 98 | C137: Papel Carbón Para Escritura Carta X 100 | E137: 12 | F137: Unidad | G137: 141 | H137: 1692 | K137: Papel Carbón Para Escritura Carta X 100 | M137: 27 | N137: Unidad | O137: 141 | P137: 3807
A138: Modificación de artículo o servicio | B138: 99 | C138: Papel Carbón Para Escritura Oficio X 100 | E138: 12 | F138: Unidad | G138: 153 | H138: 1836 | K138: Papel Carbón Para Escritura Oficio X 100 | M138: 110 | N138: Unidad | O138: 153 | P138: 16830
A139: Modificación de artículo o servicio | B139: 100 | C139: Papel Carbón Para Máquina Carta X 100 | E139: 12 | F139: Unidad | G139: 91 | H139: 1092 | K139: Papel Carbón Para Máquina Carta X 100 | M139: 36 | N139: Unidad | O139: 91 | P139: 3276
A140: Modificación de artículo o servicio | B140: 101 | C140: Papel Carbón Para Máquina Oficio X 100 | E140: 12 | F140: Unidad | G140: 100 | H140: 1200 | K140: Papel Carbón Para Máquina Oficio X 100 | M140: 22 | N140: Unidad | O140: 100 | P140: 2200
A141: Modificación de artículo o servicio | B141: 102 | C141: Papel Contact Colores | E141: 30 | F141: Rollo X 20 metros | G141: 24748.9 | H141: 742467 | K141: Papel Contact Colores | M141: 60 | N141: Rollo X 20 metros | O141: 24748.9 | P141: 1484934
A142: Modificación de artículo o servicio | B142: 103 | C142: Papel Contact Transparente | E142: 45 | F142: Rollo X 20 metros | G142: 22578.6 | H142: 1016037 | K142: Papel Contact Transparente | M142: 55 | N142: Rollo X 20 metros | O142: 22578.6 | P142: 1241823
A143: Modificación de artículo o servicio | B143: 104 | C143: Papel Kraft 60G | E143: 600 | F143: Rollo | G143: 23038.04 | H143: 13822824 | K143: Papel Kraft 60G | M143: 650 | N143: Rollo | O143: 23038.04 | P143: 14974726
A144: Modificación de artículo o servicio | B144: 105 | C144: Papel Kraft 90G | E144: 1000 | F144: Rollo | G144: 29511.45 | H144: 29511450 | K144: Papel Kraft 90G | M144: 1010 | N144: Rollo | O144: 29511.45 | P144: 29806564.5
A145: Modificación de artículo o servicio | B145: 106 | C145: Papel Para Plotter | E145: 180 | F145: Rollo | G145: 27255.75 | H145: 4906035 | K145: Papel Para Plotter | M145: 190 | N145: Rollo | O145: 27255.75 | P145: 5178592.5
A146: Modificación de artículo o servicio | B146: 107 | C146: Papel Periódico Pliego | E146: 30 | F146: 10 unidades | G146: 904.7 | H146: 27141 | K146: Papel Periódico Pliego | M146: 60 | N146: 10 unidades | O146: 904.7 | P146: 54282
A147: Modificación de artículo o servicio | B147: 108 | C147: Papel Seda | E147: 15 | F147: 25 pliegos | G147: 1241.8 | H147: 18627 | K147: Papel Seda | M147: 30 | N147: 25 pliegos | O147: 1241.8 | P147: 37254
A148: Modificación de artículo o servicio | B148: 109 | C148: Pegante En Barra | E148: 900 | F148: Unidad | G148: 726.7 | H148: 654030 | K148: Pegante En Barra | M148: 1000 | N148: Unidad | O148: 726.7 | P148: 726700
A149: Modificación de artículo o servicio | B149: 110 | C149: Pegante Instantáneo | E149: 90 | F149: Unidad | G149: 1781.55 | H149: 160339.5 | K149: Pegante Instantáneo | M149: 210 | N149: Unidad | O149: 1781.55 | P149: 374125.5
A150: Modificación de artículo o servicio | B150: 111 | C150: Pegante Líquido 225G | E150: 120 | F150: Unidad | G150: 838 | H150: 100560 | K150: Pegante Líquido 225G | M150: 180 | N150: Unidad | O150: 838 | P150: 150840
A151: Modificación de artículo o servicio | B151: 112 | C151: Pegante Líquido 4000G | E151: 60 | F151: Unidad | G151: 11555.3 | H151: 693318 | K151: Pegante Líquido 4000G | M151: 111 | N151: Unidad | O151: 11555.3 | P151: 1282638.3
A152: Modificación de artículo o servicio | B152: 113 | C152: Perforadora Industrial 2 Huecos | E152: 51 | F152: Unidad | G152: 116678.9 | H152: 5950623.9 | K152: Perforadora Industrial 2 Huecos | M152: 141 | N152: Unidad | O152: 116678.9 | P152: 16451724.9
A153: Modificación de artículo o servicio | B153: 114 | C153: Perforadora Para Oficina De 2 Huecos | E153: 90 | F153: Unidad | G153: 7054 | H153: 634860 | K153: Perforadora Para Oficina De 2 Huecos | M153: 210 | N153: Unidad | O153: 7054 | P153: 1481340
A154: Modificación de artículo o servicio | B154: 115 | C154: Perforadora Semindustrial 2 Huecos | E154: 120 | F154: Unidad | G154: 15111.3 | H154: 1813356 | K154: Perforadora Semindustrial 2 Huecos | M154: 150 | N154: Unidad | O154: 15111.3 | P154: 2266695
A155: Modificación de artículo o servicio | B155: 116 | C155: Perforadoras 3 Huecos | E155: 30 | F155: Unidad | G155: 19192 | H155: 575760 | K155: Perforadoras 3 Huecos | M155: 40 | N155: Unidad | O155: 19192 | P155: 767680
A156: Modificación de artículo o servicio | B156: 117 | C156: Pilas 9V Cuadrada Recargable | E156: 48 | F156: Unidad | G156: 14095.4 | H156: 676579.2 | K156: Pilas 9V Cuadrada Recargable | M156: 58 | N156: Unidad | O156: 14095.4 | P156: 817533.2
A157: Modificación de artículo o servicio | B157: 118 | C157: Pilas Aa Recargables Par | E157: 90 | F157: Dos pilas | G157: 11251.2 | H157: 1012608 | K157: Pilas Aa Recargables Par | M157: 100 | N157: Dos pilas | O157: 11251.2 | P157: 1125120
A158: Modificación de artículo o servicio | B158: 119 | C158: Pilas Aaa Recargables Par | E158: 90 | F158: Dos pilas | G158: 7343.6 | H158: 660924 | K158: Pilas Aaa Recargables Par | M158: 95 | N158: Dos pilas | O158: 7343.6 | P158: 697642
A159: Modificación de artículo o servicio | B159: 120 | C159: Pilas Alcalina Cuadrada De 9V No Recargable | E159: 72 | F159: Dos pilas | G159: 4180.7 | H159: 301010.4 | K159: Pilas Alcalina Cuadrada De 9V No Recargable | M159: 92 | N159: Dos pilas | O159: 4180.7 | P159: 384624.4
A160: Modificación de artículo o servicio | B160: 121 | C160: Pilas Alcalinas Aa No Recargables Par | E160: 240 | F160: Dos pilas | G160: 1684 | H160: 404160 | K160: Pilas Alcalinas Aa No Recargables Par | M160: 260 | N160: Dos pilas | O160: 1684 | P160: 437840
A161: Modificación de artículo o servicio | B161: 122 | C161: Pilas Alcalinas Aaa No Recargables | E161: 240 | F161: Dos pilas | G161: 1816.1 | H161: 435864 | K161: Pilas Alcalinas Aaa No Recargables | M161: 270 | N161: Dos pilas | O161: 1816.1 | P161: 490347
A162: Modificación de artículo o servicio | B162: 123 | C162: Pinceles Cerdas Suaves Juego X 6 Unidades | E162: 30 | F162: 6 unidades | G162: 2984.9 | H162: 89547 | K162: Pinceles Cerdas Suaves Juego X 6 Unidades | M162: 42 | N162: 6 unidades | O162: 2984.9 | P162: 125365.8
A163: Modificación de artículo o servicio | B163: 124 | C163: Plastifolder Carta Con Bisel | E163: 12 | F163: Unidad | G163: 112.5 | H163: 1350 | K163: Plastifolder Carta Con Bisel | M163: 21 | N163: Unidad | O163: 112.5 | P163: 2362.5
A164: Modificación de artículo o servicio | B164: 125 | C164: Plastifolder Carta Con Gancho Legajador | E164: 12 | F164: Unidad | G164: 873.5 | H164: 10482 | K164: Plastifolder Carta Con Gancho Legajador | M164: 24 | N164: Unidad | O164: 873.5 | P164: 20964
A165: Modificación de artículo o servicio | B165: 126 | C165: Plastifolder Oficio Con Bisel | E165: 12 | F165: Unidad | G165: 162.9 | H165: 1954.8 | K165: Plastifolder Oficio Con Bisel | M165: 84 | N165: Unidad | O165: 162.9 | P165: 13683.6
A166: Modificación de artículo o servicio | B166: 127 | C166: Plastifolder Oficio Con Gancho Legajador | E166: 72 | F166: Unidad | G166: 915.2 | H166: 65894.4 | K166: Plastifolder Oficio Con Gancho Legajador | M166: 82 | N166: Unidad | O166: 915.2 | P166: 75046.4
A167: Modificación de artículo o servicio | B167: 128 | C167: Pliego Foamy | E167: 240 | F167: Unidad | G167: 2302.9 | H167: 552696 | K167: Pliego Foamy | M167: 270 | N167: Unidad | O167: 2302.9 | P167: 621783
A168: Modificación de artículo o servicio | B168: 129 | C168: Plumones Caja X 12 | E168: 30 | F168: Caja x 12 | G168: 864.9 | H168: =ROUND(E168*G168, 2) -> 25947 | K168: =C168 -> Plumones Caja X 12 | M168: 42 | N168: Caja x 12 | O168: 864.9 | P168: =ROUND(M168*O168, 2) -> 36325.8
A169: Modificación de artículo o servicio | B169: 130 | C169: Portalápiz | E169: 48 | F169: Unidad | G169: 5682.6 | H169: 272764.8 | K169: Portalápiz | M169: 60 | N169: Unidad | O169: 5682.6 | P169: 340956
A170: Modificación de artículo o servicio | B170: 131 | C170: Portaminas 0,5Mm | E170: 12 | F170: Unidad | G170: 404.8 | H170: 4857.6 | K170: Portaminas 0,5Mm | M170: 24 | N170: Unidad | O170: 404.8 | P170: 9715.2
A171: Modificación de artículo o servicio | B171: 132 | C171: Portaminas 0,7Mm | E171: 12 | F171: Unidad | G171: 364.9 | H171: 4378.8 | K171: Portaminas 0,7Mm | M171: 27 | N171: Unidad | O171: 364.9 | P171: 9852.3
A172: Modificación de artículo o servicio | B172: 133 | C172: Portaminas 2 Mm | E172: 12 | F172: Unidad | G172: 2232.4 | H172: 26788.8 | K172: Portaminas 2 Mm | M172: 32 | N172: Unidad | O172: 2232.4 | P172: 71436.8
A173: Modificación de artículo o servicio | B173: 134 | C173: Regla Plastica | E173: 180 | F173: Unidad | G173: 620.55 | H173: 111699 | K173: Regla Plastica | M173: 195 | N173: Unidad | O173: 620.55 | P173: 121007.25
A174: Modificación de artículo o servicio | B174: 135 | C174: Regla Metálica Grande | E174: 120 | F174: Unidad | G174: 2518.65 | H174: 302238 | K174: Regla Metálica Grande | M174: 600 | N174: Unidad | O174: 2518.65 | P174: 1511190
A175: Modificación de artículo o servicio | B175: 136 | C175: Regla Metálica | E175: 15 | F175: Unidad | G175: 89.7 | H175: 1345.5 | K175: Regla Metálica | M175: 495 | N175: Unidad | O175: 89.7 | P175: 44401.5
A176: Modificación de artículo o servicio | B176: 137 | C176: Repuesto Bisturí 18Mm Paquete X 10 | E176: 30 | F176: Paquete x 10 | G176: 508.5 | H176: 15255 | K176: Repuesto Bisturí 18Mm Paquete X 10 | M176: 40 | N176: Paquete x 10 | O176: 508.5 | P176: 20340
A177: Modificación de artículo o servicio | B177: 138 | C177: Repuesto Bisturí 9Mm Paquete X 10 | E177: 30 | F177: Paquete x 10 | G177: 253.1 | H177: 7593 | K177: Repuesto Bisturí 9Mm Paquete X 10 | M177: 40 | N177: Paquete x 10 | O177: 253.1 | P177: 10124
A178: Modificación de artículo o servicio | B178: 139 | C178: Resaltador Desechable | E178: 480 | F178: Unidad | G178: 252 | H178: 120960 | K178: Resaltador Desechable | M178: 600 | N178: Unidad | O178: 252 | P178: 151200
A179: Modificación de artículo o servicio | B179: 140 | C179: Rollo Papel Químico 76Mm | E179: 480 | F179: Unidad | G179: 1535 | H179: 736800 | K179: Rollo Papel Químico 76Mm | M179: 660 | N179: Unidad | O179: 1535 | P179: 1013100
A180: Modificación de artículo o servicio | B180: 141 | C180: Rollo Sumadora 57Mm | E180: 30 | F180: Unidad | G180: 413.2 | H180: 12396 | K180: Rollo Sumadora 57Mm | M180: 210 | N180: Unidad | O180: 413.2 | P180: 86772
A181: Modificación de artículo o servicio | B181: 142 | C181: Rollo Sumadora 70Mm | E181: 30 | F181: Unidad | G181: 546.6 | H181: 16398 | K181: Rollo Sumadora 70Mm | M181: 210 | N181: Unidad | O181: 546.6 | P181: 114786
A182: Modificación de artículo o servicio | B182: 143 | C182: Rotulo Adhesivo Matriz X 480 Rótulos | E182: 120 | F182: 480 rótulos | G182: 15004.2 | H182: 1800504 | K182: Rotulo Adhesivo Matriz X 480 Rótulos | M182: 300 | N182: 480 rótulos | O182: 15004.2 | P182: 4501260
A183: Modificación de artículo o servicio | B183: 144 | C183: Rotulo Adhesivo Matriz X 1080 Rótulos | E183: 180 | F183: 1080 rótulos | G183: 13239 | H183: 2383020 | K183: Rotulo Adhesivo Matriz X 1080 Rótulos | M183: 420 | N183: 1080 rótulos | O183: 13239 | P183: 5560380
A184: Modificación de artículo o servicio | B184: 145 | C184: Rotulo Adhesivo Para Cd/Dvd 116 Mm Sobre De 30 Hojas | E184: 180 | F184: 30 hojas | G184: 10505.95 | H184: 1891071 | K184: Rotulo Adhesivo Para Cd/Dvd 116 Mm Sobre De 30 Hojas | M184: 420 | N184: 30 hojas | O184: 10505.95 | P184: 4412499
A185: Modificación de artículo o servicio | B185: 146 | C185: Rotulo Adhesivo Para Cd/Dvd 118 Mm Sobre De 30 Hojas | E185: 180 | F185: 30 hojas | G185: 10505.95 | H185: 1891071 | K185: Rotulo Adhesivo Para Cd/Dvd 118 Mm Sobre De 30 Hojas | M185: 300 | N185: 30 hojas | O185: 10505.95 | P185: 3151785
A186: Modificación de artículo o servicio | B186: 147 | C186: Rotulo Adhesivo Por Hoja, Sobre De 30 Hojas | E186: 180 | F186: 30 hojas | G186: 14121.6 | H186: 2541888 | K186: Rotulo Adhesivo Por Hoja, Sobre De 30 Hojas | M186: 280 | N186: 30 hojas | O186: 14121.6 | P186: 3954048
A187: Modificación de artículo o servicio | B187: 148 | C187: Sacaganchos Para Grapa | E187: 240 | F187: Unidad | G187: 507.1 | H187: 121704 | K187: Sacaganchos Para Grapa | M187: 260 | N187: Unidad | O187: 507.1 | P187: 131846
A188: Modificación de artículo o servicio | B188: 149 | C188: Separador Plástico Carta Paquete X 5 | E188: 240 | F188: Paquete x 5 | G188: 169.9 | H188: 40776 | K188: Separador Plástico Carta Paquete X 5 | M188: 260 | N188: Paquete x 5 | O188: 169.9 | P188: 44174
A189: Modificación de artículo o servicio | B189: 150 | C189: Silicona Liquida | E189: 120 | F189: Unidad | G189: 1276.1 | H189: 153132 | K189: Silicona Liquida | M189: 140 | N189: Unidad | O189: 1276.1 | P189: 178654
A190: Modificación de artículo o servicio | B190: 151 | C190: Sobre De Manila Carta Paquete X 100 | E190: 180 | F190: 100 Unidades | G190: 6427.8 | H190: 1157004 | K190: Sobre De Manila Carta Paquete X 100 | M190: 200 | N190: 100 Unidades | O190: 6427.8 | P190: 1285560
A191: Modificación de artículo o servicio | B191: 152 | C191: Sobre De Manila Extra Oficio Paquete X 50 | E191: 150 | F191: 50 Unidades | G191: 4939 | H191: 740850 | K191: Sobre De Manila Extra Oficio Paquete X 50 | M191: 250 | N191: 50 Unidades | O191: 4939 | P191: 1234750
A192: Modificación de artículo o servicio | B192: 153 | C192: Sobre De Manila Medio Oficio Paquete X 100 | E192: 270 | F192: 100 Unidades | G192: 4629.1 | H192: 1249857 | K192: Sobre De Manila Medio Oficio Paquete X 100 | M192: 370 | N192: 100 Unidades | O192: 4629.1 | P192: 1712767
A193: Modificación de artículo o servicio | B193: 154 | C193: Sobre De Manila Oficio Paquete X 100 | E193: 300 | F193: 100 Unidades | G193: 6289.15 | H193: 1886745 | K193: Sobre De Manila Oficio Paquete X 100 | M193: 310 | N193: 100 Unidades | O193: 6289.15 | P193: 1949636.5
A194: Modificación de artículo o servicio | B194: 155 | C194: Sobre De Manila Radiólogo Paquete X 100 | E194: 180 | F194: 100 Unidades | G194: 5657.25 | H194: 1018305 | K194: Sobre De Manila Radiólogo Paquete X 100 | M194: 195 | N194: 100 Unidades | O194: 5657.25 | P194: 1103163.75
A195: Modificación de artículo o servicio | B195: 156 | C195: Sobre Para Archivo Carta | E195: 3000 | F195: Unidad | G195: 76.6 | H195: 229800 | K195: Sobre Para Archivo Carta | M195: 3060 | N195: Unidad | O195: 76.6 | P195: 234396
A196: Modificación de artículo o servicio | B196: 157 | C196: Sobre Para Archivo Oficio | E196: 3600 | F196: Unidad | G196: 108.7 | H196: 391320 | K196: Sobre Para Archivo Oficio | M196: 3703 | N196: Unidad | O196: 108.7 | P196: 402516.1
A197: Modificación de artículo o servicio | B197: 158 | C197: Sobrecubiertas Laterales | E197: 1500 | F197: Unidad | G197: 1075.05 | H197: 1612575 | K197: Sobrecubiertas Laterales | M197: 1900 | N197: Unidad | O197: 1075.05 | P197: 2042595
A198: Modificación de artículo o servicio | B198: 159 | C198: Sobrecubiertas Laterales Membreteadas. La Entidad Compradora Debe Solicitar Mínimo 500 Unidades. | E198: 1500 | F198: Unidad | G198: 1075.05 | H198: 1612575 | K198: Sobrecubiertas Laterales Membreteadas. La Entidad Compradora Debe Solicitar Mínimo 500 Unidades. | M198: 1680 | N198: Unidad | O198: 1075.05 | P198: 1806084
A199: Modificación de artículo o servicio | B199: 160 | C199: Tabla Planillera | E199: 120 | F199: Unidad | G199: 1967.9 | H199: 236148 | K199: Tabla Planillera | M199: 240 | N199: Unidad | O199: 1967.9 | P199: 472296
A200: Modificación de artículo o servicio | B200: 161 | C200: Tablero En Acrílico | E200: 15 | F200: Unidad | G200: 52960 | H200: =ROUND(E200*G200, 2) -> 794400 | K200: =C200 -> Tablero En Acrílico | M200: 135 | N200: Unidad | O200: 52960 | P200: =ROUND(M200*O200, 2) -> 7149600
A201: Modificación de artículo o servicio | B201: 162 | C201: Taco De Papel | E201: 60 | F201: Unidad | G201: 631 | H201: 37860 | K201: Taco De Papel | M201: 181 | N201: Unidad | O201: 631 | P201: 114211
A202: Modificación de artículo o servicio | B202: 163 | C202: Tajalápiz | E202: 240 | F202: Unidad | G202: 123.6 | H202: 29664 | K202: Tajalápiz | M202: 360 | N202: Unidad | O202: 123.6 | P202: 44496
A203: Modificación de artículo o servicio | B203: 164 | C203: Tarjeta Pvc Calibre 30 Para Carnet Institucional Paquete X 100 | E203: 540 | F203: Paquete x 100 | G203: 14031 | H203: 7576740 | K203: Tarjeta Pvc Calibre 30 Para Carnet Institucional Paquete X 100 | M203: 660 | N203: Paquete x 100 | O203: 14031 | P203: 9260460
A204: Modificación de artículo o servicio | B204: 165 | C204: Tijera De Acero Inoxidable | E204: 180 | F204: Unidad | G204: 1632.8 | H204: 293904 | K204: Tijera De Acero Inoxidable | M204: 300 | N204: Unidad | O204: 1632.8 | P204: 489840
A205: Modificación de artículo o servicio | B205: 166 | C205: Tinta Marcador Borrable Recargable | E205: 120 | F205: Unidad | G205: 326.5 | H205: 39180 | K205: Tinta Marcador Borrable Recargable | M205: 122 | N205: Unidad | O205: 326.5 | P205: 39833
A206: Modificación de artículo o servicio | B206: 167 | C206: Tinta Para Sello 28 A 30 Cc Negro | E206: 120 | F206: Unidad | G206: 675.7 | H206: 81084 | K206: Tinta Para Sello 28 A 30 Cc Negro | M206: 190 | N206: Unidad | O206: 675.7 | P206: 128383
A207: Modificación de artículo o servicio | B207: 168 | C207: Tinta Para Sello Para Documento Histórico Y Archivístico 28 A 30 C.C. Azul | E207: 120 | F207: Unidad | G207: 791.2 | H207: 94944 | K207: Tinta Para Sello Para Documento Histórico Y Archivístico 28 A 30 C.C. Azul | M207: 191 | N207: Unidad | O207: 791.2 | P207: 151119.2
A208: Modificación de artículo o servicio | B208: 169 | C208: Tinta Para Sello Para Documento Histórico Y Archivístico X 28 A 30 C.C. Negro | E208: 120 | F208: Unidad | G208: 791.2 | H208: 94944 | K208: Tinta Para Sello Para Documento Histórico Y Archivístico X 28 A 30 C.C. Negro | M208: 190 | N208: Unidad | O208: 791.2 | P208: 150328
A209: Modificación de artículo o servicio | B209: 170 | C209: Tinta Para Sello Para Documento Histórico Y Archivístico X 500 C.C. Azul | E209: 120 | F209: Unidad | G209: 5628.5 | H209: 675420 | K209: Tinta Para Sello Para Documento Histórico Y Archivístico X 500 C.C. Azul | M209: 195 | N209: Unidad | O209: 5628.5 | P209: 1097557.5
A210: Modificación de artículo o servicio | B210: 171 | C210: Tinta Para Sello Para Documento Histórico Y Archivístico X 500 C.C. Negro | E210: 120 | F210: Unidad | G210: 5625.5 | H210: 675060 | K210: Tinta Para Sello Para Documento Histórico Y Archivístico X 500 C.C. Negro | M210: 240 | N210: Unidad | O210: 5625.5 | P210: 1350120
A211: Modificación de artículo o servicio | B211: 172 | C211: Tinta Para Sello X Galón Negro | E211: 30 | F211: Unidad | G211: 42389.5 | H211: 1271685 | K211: Tinta Para Sello X Galón Negro | M211: 60 | N211: Unidad | O211: 42389.5 | P211: 2543370
G213: Cantidad de celdas a agregar: | I213: 1
A216: Sección 5: Resultados de la modificación
A218: Número de la línea según O.C. | B218: Nombre del artículo | F218: Valores actuales | I218: Nuevos valores
B219: Valor de la línea IVA en la Orden de Compra: | F219: =ROUND(M219, 2) -> 0 | M219: 0
B220: Valor de la línea AIU en la Orden de Compra:
B221: Valor de la línea gravámenes adicionales en la Orden de Compra:
B226: Firma ordenador del gasto | G226: Firma de Proveedor | L226: Fecha de elaboración
A228: Nombre: | F228: Nombre: | K228: Las partes manifestamos que este mismo documento se cargará en la plataforma en formato Excel (.xlsm) y los cambios se pueden validar con el mismo.
A229: Documento de Identidad: | E229: Documento de Identidad:

Sheet Instructivo de Diligenciamiento
B4: Instrucciones de diligenciamiento: Colombia Compra Eficiente ha diseñado este formato para que las Entidades Compradoras puedan realizar aclaraciones, modificaciones, cancelaciones o terminaciones y liquidaciones de las Órdenes de Compra que estén en ejecución y vigentes, o ejecutadas. Para ello debe indicar: Datos generales: Datos básicos como número de la Orden de Compra que requiere cambiar, número consecutivo de solicitud tenga en cuenta que la primera solicitud corresponderá a la número “1”, nombre de la Entidad Compradora, nombre de la persona que solicita las acciones, celular o número de teléfono y extensión, NIT de la Entidad Compradora y el nombre del Proveedor que ejecuta la Orden de Compra. Sección 1. Tipo de acción: Las Entidades pueden solicitar cuatro tipos de acciones respecto de las Órdenes de Compra: (i) Aclaraciones: Son las indicaciones de cambio de información que no afectan el plazo, el valor o las condiciones contractuales de las Órdenes de Compra como: redacción en las condiciones de entrega, errores de digitación o rectificación de la fecha de vencimiento. Estas aclaraciones no requieren de la aceptación del Proveedor. Sin embargo una vez realizada la aclaración en la Orden de Compra, la Entidad Compradora debe notificarle al Proveedor el cambio. (ii) Modificaciones: Son indicaciones de cambio en aumento o disminución de valor o plazo, aumento o disminución de los bienes o servicios solicitados, cambios en las condiciones de ejecución o datos que afecten la ejecución de la Orden de Compra. Solo en los casos de cambio de supervisor y datos de notificación como dirección o teléfono se puede omitir la firma del Proveedor. Sin embargo una vez realizada la modificación, la Entidad Compradora debe notificarle al Proveedor el cambio. (iii) Cancelación: Es la manifestación de la Entidad de no iniciar la ejecución de la Orden de Compra la cual también debe ser aceptada por el Proveedor. (iv) Terminación y Liquidación: Este tipo de acción es mediante la cual una Entidad Compradora formaliza la terminación y liquidación de las obligaciones derivadas de la Orden de Compra y así establece las acreencias pendientes a favor o en contra de cada parte de la Orden de Compra, también sirve para aclarar la ejecución de la misma o realizar la terminación anticipada en caso de que las partes así lo deseen. Este tipo de acción se debe aplicar dentro de los términos establecidos en cada Acuerdo Marco de Precios, para lo cual se requiere la solicitud por parte de la Entidad Compradora firmada por el Ordenador del Gasto y el representante legal del Proveedor, así como el informe del supervisor de la Orden de Compra. Sección 2. Justificación: Las razones de la realización del cambio de la Orden de Compra. Sección 3. Modificación información general: la idea en esta sección es indicar cuales son los datos de información general de la orden de compra que requiere cambiar Sección 4. Modificación de artículos o servicios: esta sección unicamente aplica en caso de que la acción a realizar sea modificar o terminar y liquidar la orden de compra, allí deberá indicar el tipo de midificación que desea realizar e ingresar o modificar los articulos que desea ajustar. Al momento de diligenciar esta sección tenga en cuenta las siguientes recomendaciones: (i) Las correcciones en el plazo de ejecución son diferentes a las modificaciones en el plazo, ejemplo: la Entidad Compradora adquirió elementos con tres entregas parciales pero digitó como fecha final de la Orden de Compra la fecha de la primera entrega, para corregir esto la Entidad Compradora selecciona en tipo de acción: aclaración y en el campo de fecha de vencimiento indica la fecha correcta. En el caso que fuera cambio de fecha fin, ejemplo: prorrogar o disminuir varios meses la ejecución de la Orden de Compra se utiliza en tipo de acción: modificación. (ii) para la realización de las modificaciones tenga en cuenta las secciones de modificación de cada una de las guías de compra (iii) los valores y cantidades solo pueden tener hasta dos decimales. (iv) la decisión de modificar, adicionar o combinar las dos opciones dependerá de las necesidades de cada Entidad Compradora, ejemplo si es un servicio y adicionalmente solo requiere modificar “cantidad” se recomienda seleccionar “modificación de artículo”, cuando son bienes puede modificar cualquiera de los demás campos. (v) si requiere cambio de condiciones de un servicio ya ejecutado se recomienda modificar la línea para que se refleje la parte ejecutada y adicionar una nueva línea para las nuevas condiciones del servicio que va a ejecutar. Sección 5. Resultados de la modificación: La entidad siempre debe indicar en el recuadro el valor total del IVA, AIU, gravámenes adicionales, estos campos serán los valores finales que quedarán en la Orden de Compra después de la modificación, tenga en cuenta que el campo de IVA no aplica para algunos AMP como: papelería, vehículos y SOAT y que el campo de AIU solo aplica para aseo y cafetería. Firmas del documento: El ordenador del gasto de la Entidad Compradora debe firmar el documento y enviarlo al Proveedor para que lo acepte y firme, en caso de que así se requiera. El documento firmado debe ser enviado a través del aplicativo dispuesto por Colombia Compra Eficiente para realizar las acciones solicitadas. Fecha de elaboración del documento: Corresponde a la fecha en la que la Entidad Compradora y el Proveedor llegaron a un acuerdo para realizar las acciones y se suscribe el documento, recuerde que: (i) para poder realizar modificaciones en las Órdenes de Compra las mismas se deben acordar dentro de la vigencia de la Orden de Compra, (ii) Las órdenes de compra no se podrán modificar si ya se encuentran vencidas, (iii) Se da por realizada la modificación o acción que requiera realizar la Entidad, desde le momento en que las partes la firmen. Colombia Compra Eficiente lo único que realiza en la Tienda Virtual es el proceso de publicación de la modificación o ajuste que las partes hayan acordado a través de la firma de este documento. Si la Entidad Compradora requiere agregar archivos que estén relacionados con las acciones a realizar como: copia del CDP y/o aprobación de Vigencia Futura (VF) que soporta la adición, soportes documentales, correos, cartas, etc... debe publicarlos junto con el documento de modificación suscrito en un único archivo .Pdf con alta resolución de escaneo, si el documento no es legible se tomaran los cambios contenidos en el formato Excel, tenga en cuenta que Colombia Compra Eficiente únicamente publicará las modificaciones especificadas en el formato enviado por el aplicativo.

Sheet Listas (hidden)
A1: TipoDeModificacion | C1: Modificacion
A2: Modificación de la Orden de Compra | C2: Modificación de artículo o servicio
A3: Aclaración a la Orden de Compra | C3: Agregar nuevo artículo o servicio
A4: Cancelación de la Orden de Compra | C4: Eliminar artículo o servicio
A5: Terminación y Liquidación de la Orden de Compra | C5: Ninguna
